[Event "EYCC Girls-U18 2019"]
[Site "Bratislava"]
[Date "2019.08.06"]
[Round "5.19"]
[White "Sankova, Stella"]
[Black "Chrysogelou, Athanasia-Panagiota"]
[Result "0-1"]
[ECO "B51"]
[WhiteElo "1997"]
[BlackElo "1770"]
[Annotator "NA"]
[PlyCount "66"]
[EventDate "2019.08.02"]
[EventType "swiss"]
[EventCountry "SVK"]
[SourceTitle "playchess.com"]
[Source "ChessBase"]
[SourceQuality "1"]
[TimeControl "40/5400+30:1800+30"]

1. e4 {[%emt 0:00:00]} c5 {[%emt 0:00:00]} 2. Nf3 {[%emt 0:00:00]} d6 {[%emt 0:00:00]} 3. Bb5+ {[%emt 0:00:00]} Nd7 {[%emt 0:00:14]} 4. c3 {[%emt 0:00:00]} a6 {[%emt 0:01:11]} 5. Ba4 {[%emt 0:00:00]} b5 {[%emt 0:01:37]} 6. Bc2 {[%emt 0:00:02]} c4 {[%emt 0:00:49]} 7. b3 {[%emt 0:03:49]} Bb7 {[%emt 0:02:01]} 8. Qe2 {[%emt 0:06:43]} Rc8 {[%emt 0:07:11]} 9. a4 {[%emt 0:11:24]} Ngf6 {[%emt 0:08:21]} 10. axb5 {[%emt 0:02:06]} axb5 {[%emt 0:00:24]} 11. Na3 {[%emt 0:12:13]} cxb3 {[%emt 0:12:20]} 12. Bd3 {[%emt 0:03:09]} e6 {[%emt 0:12:15]} 13. Nd4 {[%emt 0:01:50]} Be7 {[%emt 0:04:55]} 14. Nxb3 {[%emt 0:02:34]} Qb6 {[%emt 0:05:34]} 15. f3 {[%emt 0:10:57]} b4 {[%emt 0:03:27]} 16. Nc4 {[%emt 0:01:36]} Qc7 {[%emt 0:00:47]} 17. cxb4 {[%emt 0:00:52]} d5 {[%emt 0:02:22]} 18. Nca5 {[%emt 0:07:54]} dxe4 {[%emt 0:05:56]} 19. fxe4 {[%emt 0:00:22]} Rb8 {[%emt 0:07:59]} 20. Nxb7 {[%emt 0:08:57]} Qxb7 {[%emt 0:01:27]} 21. Na5 {[%emt 0:01:45]} Qc7 {[%emt 0:00:31]} 22. Bb5 {[%emt 0:02:59]} Qb6 {[%emt 0:04:12]} 23. Bxd7+ {[%emt 0:03:50]} Nxd7 {[%emt 0:00:44]} 24. Ba3 {[%emt 0:04:51]} Bxb4 {[%emt 0:03:16]} 25. Bxb4 {[%emt 0:01:49]} Qxb4 {[%emt 0:00:05]} 26. Nc6 {[%emt 0:01:34]} Qb2 {[%emt 0:00:28]} 27. Qa6 {[%emt 0:00:25]} Nc5 {[%emt 0:05:21]} 28. Qa7 {[%emt 0:00:49]} Rb7 {[%emt 0:01:10]} 29. Qa5 {[%emt 0:05:25]} O-O {[%emt 0:05:36]} 30. O-O {[%emt 0:00:28]} Nb3 {[%emt 0:01:16]} 31. Qa4 {[%emt 0:02:56]} Nxa1 {[%emt 0:00:25]} 32. Rxa1 {[%emt 0:00:00]} Qxd2 {[%emt 0:00:38]} 33. Qa8 {[%emt 0:01:36]} Rb1+ {[%emt 0:01:37]} 0-1

[Event "EYCC Girls-U18 2019"]
[Site "Bratislava"]
[Date "2019.08.06"]
[Round "5.20"]
[White "Koubova, Anna Marie"]
[Black "Poliakova, Varvara"]
[Result "1-0"]
[ECO "A85"]
[WhiteElo "2094"]
[BlackElo "1872"]
[Annotator "NA"]
[PlyCount "59"]
[EventDate "2019.08.02"]
[EventType "swiss"]
[EventCountry "SVK"]
[SourceTitle "playchess.com"]
[Source "ChessBase"]
[SourceQuality "1"]
[TimeControl "40/5400+30:1800+30"]

1. d4 {[%emt 0:00:00]} f5 {[%emt 0:00:00]} 2. c4 {[%emt 0:00:00]} Nf6 {[%emt 0:00:00]} 3. Nc3 {[%emt 0:00:00]} g6 {[%emt 0:00:00]} 4. h4 {[%emt 0:00:00]} d6 {[%emt 0:00:25]} 5. h5 {[%emt 0:00:06]} Nxh5 {[%emt 0:00:17]} 6. Rxh5 {[%emt 0:00:18]} gxh5 {[%emt 0:00:04]} 7. e4 {[%emt 0:00:06]} fxe4 {[%emt 0:02:39]} 8. Qxh5+ {[%emt 0:00:26]} Kd7 {[%emt 0:00:07]} 9. Be2 {[%emt 0:01:29]} c6 {[%emt 0:00:31]} 10. Be3 {[%emt 0:03:06]} Kc7 {[%emt 0:01:17]} 11. Nxe4 {[%emt 0:01:47]} Nd7 {[%emt 0:02:52]} 12. Nh3 {[%emt 0:03:26]} Nb6 {[%emt 0:10:18]} 13. Neg5 {[%emt 0:07:14]} Qd7 {[%emt 0:07:32]} 14. Nf4 {[%emt 0:18:04]} Qf5 {[%emt 0:04:35]} 15. Bd3 {[%emt 0:02:43]} Qf6 {[%emt 0:08:51]} 16. d5 {[%emt 0:12:05]} Kb8 {[%emt 0:12:22]} 17. Nge6 {[%emt 0:10:45]} c5 {[%emt 0:09:10]} 18. g4 {[%emt 0:15:07]} Qxb2 {[%emt 0:02:15]} 19. Rb1 {[%emt 0:00:12]} Qc3+ {[%emt 0:01:22]} 20. Ke2 {[%emt 0:01:10]} Bg7 {[%emt 0:03:27]} 21. g5 {[%emt 0:03:54]} Be5 {[%emt 0:05:59]} 22. Qf7 {[%emt 0:09:55]} Bxf4 {[%emt 0:04:43]} 23. Bxf4 {[%emt 0:00:08]} Bxe6 {[%emt 0:01:11]} 24. Qxe7 {[%emt 0:00:24]} Bg4+ {[%emt 0:00:55]} 25. f3 {[%emt 0:00:04]} Bxf3+ {[%emt 0:00:27]} 26. Kxf3 {[%emt 0:00:05]} Qxd3+ {[%emt 0:00:39]} 27. Kg4 {[%emt 0:00:17]} Kc8 {[%emt 0:02:59]} 28. Qxd6 {[%emt 0:09:46]} Qe2+ {[%emt 0:01:01]} 29. Kg3 {[%emt 0:00:13]} Qd3+ {[%emt 0:00:08]} 30. Kh4 {[%emt 0:00:36]} 1-0

[Event "EYCC Girls-U18 2019"]
[Site "Bratislava"]
[Date "2019.08.06"]
[Round "5.21"]
[White "Kulpa, Zuzanna"]
[Black "Duson, Robin"]
[Result "1/2-1/2"]
[ECO "A79"]
[WhiteElo "1802"]
[BlackElo "1936"]
[Annotator "NA"]
[PlyCount "87"]
[EventDate "2019.08.02"]
[EventType "swiss"]
[EventCountry "SVK"]
[SourceTitle "playchess.com"]
[Source "ChessBase"]
[SourceQuality "1"]
[TimeControl "40/5400+30:1800+30"]

1. d4 {[%emt 0:00:00]} Nf6 {[%emt 0:00:00]} 2. c4 {[%emt 0:00:00]} e6 {[%emt 0:00:00]} 3. Nf3 {[%emt 0:00:00]} c5 {[%emt 0:00:00]} 4. d5 {[%emt 0:00:00]} exd5 {[%emt 0:00:11]} 5. cxd5 {[%emt 0:00:02]} d6 {[%emt 0:00:05]} 6. Nc3 {[%emt 0:00:07]} g6 {[%emt 0:00:13]} 7. Nd2 {[%emt 0:00:13]} Bg7 {[%emt 0:01:42]} 8. e4 {[%emt 0:00:09]} O-O {[%emt 0:01:14]} 9. Be2 {[%emt 0:00:10]} Re8 {[%emt 0:04:27]} 10. O-O {[%emt 0:00:12]} Na6 {[%emt 0:03:50]} 11. f3 {[%emt 0:00:47]} Nc7 {[%emt 0:02:18]} 12. a4 {[%emt 0:00:26]} b6 {[%emt 0:03:29]} 13. Nc4 {[%emt 0:00:23]} Ba6 {[%emt 0:01:25]} 14. Bg5 {[%emt 0:00:49]} Bxc4 {[%emt 0:05:23]} 15. Bxc4 {[%emt 0:00:07]} a6 {[%emt 0:13:44]} 16. Qd2 {[%emt 0:00:55]} Qb8 {[%emt 0:04:46]} 17. Rfb1 {[%emt 0:09:47]} Nd7 {[%emt 0:05:11]} 18. Bf1 {[%emt 0:04:55]} Qb7 {[%emt 0:07:11]} 19. b4 {[%emt 0:04:52]} Bd4+ {[%emt 0:08:44]} 20. Kh1 {[%emt 0:01:13]} Qa7 {[%emt 0:03:38]} 21. Ra2 {[%emt 0:06:05]} Rec8 {[%emt 0:06:06]} 22. Be3 {[%emt 0:12:43]} Bg7 {[%emt 0:02:12]} 23. Bh6 {[%emt 0:09:03]} Bh8 {[%emt 0:00:50]} 24. Ra3 {[%emt 0:07:28]} Ne8 {[%emt 0:05:17]} 25. bxc5 {[%emt 0:03:19]} bxc5 {[%emt 0:00:25]} 26. Rab3 {[%emt 0:00:10]} Rab8 {[%emt 0:01:05]} 27. Rxb8 {[%emt 0:03:47]} Rxb8 {[%emt 0:00:05]} 28. Rxb8 {[%emt 0:00:08]} Qxb8 {[%emt 0:02:16]} 29. Nd1 {[%emt 0:07:07]} Qb3 {[%emt 0:01:54]} 30. a5 {[%emt 0:06:26]} c4 {[%emt 0:00:41]} 31. Be3 {[%emt 0:04:37]} c3 {[%emt 0:00:38]} 32. Qe2 {[%emt 0:03:14]} Nc7 {[%emt 0:04:39]} 33. Nf2 {[%emt 0:01:18]} Nb5 {[%emt 0:01:13]} 34. Qc4 {[%emt 0:01:37]} Qxc4 {[%emt 0:02:25]} 35. Bxc4 {[%emt 0:00:02]} c2 {[%emt 0:02:50]} 36. Bxb5 {[%emt 0:09:48]} axb5 {[%emt 0:00:07]} 37. Nd3 {[%emt 0:00:03]} Nc5 {[%emt 0:03:30]} 38. Bxc5 {[%emt 0:02:13]} dxc5 {[%emt 0:00:25]} 39. a6 {[%emt 0:00:04]} c4 {[%emt 0:00:41]} 40. a7 {[%emt 0:00:00]} cxd3 {[%emt 0:00:00]} 41. a8=Q+ {[%emt 0:00:21]} Kg7 {[%emt 0:00:38]} 42. Qa1+ {[%emt 0:01:12]} Kg8 {[%emt 0:00:05]} 43. Qa8+ {[%emt 0:00:33]} Kg7 {[%emt 0:00:05]} 44. Qa1+ {[%emt 0:00:30]} 1/2-1/2

[Event "EYCC Girls-U18 2019"]
[Site "Bratislava"]
[Date "2019.08.06"]
[Round "5.22"]
[White "Sibajeva, Marija"]
[Black "Tumova, Anna"]
[Result "1-0"]
[ECO "C03"]
[WhiteElo "2031"]
[BlackElo "1722"]
[Annotator "NA"]
[PlyCount "61"]
[EventDate "2019.08.02"]
[EventType "swiss"]
[EventCountry "SVK"]
[SourceTitle "playchess.com"]
[Source "ChessBase"]
[SourceQuality "1"]
[TimeControl "40/5400+30:1800+30"]

1. e4 {[%emt 0:00:00]} e6 {[%emt 0:00:00]} 2. d4 {[%emt 0:00:00]} d5 {[%emt 0:00:00]} 3. Nd2 {[%emt 0:00:00]} a6 {[%emt 0:00:00]} 4. Ngf3 {[%emt 0:00:00]} c5 {[%emt 0:00:00]} 5. dxc5 {[%emt 0:00:00]} Bxc5 {[%emt 0:00:31]} 6. Bd3 {[%emt 0:00:02]} Nf6 {[%emt 0:01:39]} 7. O-O {[%emt 0:01:44]} O-O {[%emt 0:02:05]} 8. exd5 {[%emt 0:00:11]} exd5 {[%emt 0:01:14]} 9. h3 {[%emt 0:03:35]} Nc6 {[%emt 0:01:45]} 10. Nb3 {[%emt 0:00:43]} Bb6 {[%emt 0:01:52]} 11. Bg5 {[%emt 0:10:53]} h6 {[%emt 0:07:36]} 12. Bh4 {[%emt 0:05:21]} g5 {[%emt 0:06:41]} 13. Bg3 {[%emt 0:04:34]} Ne4 {[%emt 0:02:24]} 14. Bh2 {[%emt 0:02:03]} Qf6 {[%emt 0:05:40]} 15. c4 {[%emt 0:06:58]} Nxf2 {[%emt 0:09:58]} 16. Rxf2 {[%emt 0:00:53]} Bxf2+ {[%emt 0:00:48]} 17. Kxf2 {[%emt 0:00:21]} dxc4 {[%emt 0:02:12]} 18. Bxc4 {[%emt 0:00:46]} Qxb2+ {[%emt 0:00:36]} 19. Kg1 {[%emt 0:10:29]} Bf5 {[%emt 0:01:40]} 20. Qd6 {[%emt 0:16:06]} Na5 {[%emt 0:19:30]} 21. Bf1 {[%emt 0:00:51]} Rad8 {[%emt 0:03:47]} 22. Qxh6 {[%emt 0:03:08]} f6 {[%emt 0:01:37]} 23. Re1 {[%emt 0:02:53]} Rf7 {[%emt 0:04:09]} 24. Nxg5 {[%emt 0:07:11]} Rg7 {[%emt 0:01:49]} 25. Nxa5 b5 {[%emt 0:06:34]} 26. Nf3 {[%emt 0:15:00]} Qc3 {[%emt 0:02:48]} 27. Nb3 {[%emt 0:02:09]} Rg6 {[%emt 0:09:44]} 28. Qe3 {[%emt 0:00:46]} Qc2 {[%emt 0:02:08]} 29. Nbd4 {[%emt 0:01:02]} Qc8 {[%emt 0:00:14]} 30. Nxf5 {[%emt 0:00:13]} Qxf5 {[%emt 0:00:03]} 31. Nh4 {[%emt 0:00:20]} 1-0

[Event "EYCC Girls-U18 2019"]
[Site "Bratislava"]
[Date "2019.08.06"]
[Round "5.23"]
[White "Moscicka, Pola"]
[Black "Mocanu, Valeria"]
[Result "1-0"]
[ECO "D35"]
[WhiteElo "1870"]
[BlackElo "1769"]
[Annotator "NA"]
[PlyCount "83"]
[EventDate "2019.08.02"]
[EventType "swiss"]
[EventCountry "SVK"]
[SourceTitle "playchess.com"]
[Source "ChessBase"]
[SourceQuality "1"]
[TimeControl "40/5400+30:1800+30"]

1. d4 {[%emt 0:00:00]} d5 {[%emt 0:00:00]} 2. c4 {[%emt 0:00:00]} e6 {[%emt 0:00:00]} 3. Nc3 {[%emt 0:00:00]} Nf6 {[%emt 0:00:00]} 4. cxd5 {[%emt 0:00:00]} exd5 {[%emt 0:00:00]} 5. Bg5 {[%emt 0:00:02]} c6 {[%emt 0:00:16]} 6. e3 {[%emt 0:00:13]} Be7 {[%emt 0:00:44]} 7. Bd3 {[%emt 0:00:31]} h6 {[%emt 0:02:35]} 8. Bh4 {[%emt 0:00:58]} Ne4 {[%emt 0:01:02]} 9. Bxe7 {[%emt 0:06:14]} Qxe7 {[%emt 0:00:05]} 10. Nge2 {[%emt 0:05:49]} Bf5 {[%emt 0:06:21]} 11. O-O {[%emt 0:02:12]} O-O {[%emt 0:01:42]} 12. Qc2 {[%emt 0:07:14]} Nxc3 {[%emt 0:02:06]} 13. Nxc3 {[%emt 0:05:43]} Bxd3 {[%emt 0:00:09]} 14. Qxd3 {[%emt 0:00:04]} Nd7 {[%emt 0:01:05]} 15. Rab1 {[%emt 0:00:41]} Nb6 {[%emt 0:01:42]} 16. b4 {[%emt 0:02:31]} a6 {[%emt 0:01:45]} 17. Rb3 {[%emt 0:02:39]} Nc4 {[%emt 0:00:41]} 18. e4 {[%emt 0:23:16]} Qd7 {[%emt 0:03:23]} 19. Re1 {[%emt 0:05:04]} b5 {[%emt 0:01:39]} 20. e5 {[%emt 0:01:17]} a5 {[%emt 0:06:52]} 21. bxa5 {[%emt 0:01:27]} Rxa5 {[%emt 0:01:18]} 22. f4 {[%emt 0:00:55]} Qe7 {[%emt 0:14:52]} 23. f5 {[%emt 0:01:34]} b4 {[%emt 0:01:18]} 24. f6 {[%emt 0:04:20]} gxf6 {[%emt 0:01:28]} 25. Qg3+ {[%emt 0:03:40]} Kh7 {[%emt 0:05:08]} 26. Qd3+ {[%emt 0:10:42]} Kh8 {[%emt 0:01:23]} 27. Qh3 {[%emt 0:04:28]} Kh7 {[%emt 0:29:56]} 28. Qf5+ {[%emt 0:00:20]} Kh8 {[%emt 0:00:22]} 29. Qh3 {[%emt 0:02:59]} Kh7 {[%emt 0:00:16]} 30. Nxd5 {[%emt 0:00:53]} cxd5 {[%emt 0:16:11]} 31. Qf5+ {[%emt 0:00:08]} Kh8 {[%emt 0:00:12]} 32. Rh3 {[%emt 0:00:15]} Rg8 {[%emt 0:00:34]} 33. Rxh6+ {[%emt 0:01:27]} Kg7 {[%emt 0:00:03]} 34. exf6+ {[%emt 0:00:05]} Kxh6 {[%emt 0:00:16]} 35. fxe7 {[%emt 0:00:40]} Rxa2 {[%emt 0:01:18]} 36. Qh3+ {[%emt 0:01:03]} Kg7 {[%emt 0:00:27]} 37. Qg4+ {[%emt 0:00:09]} Kh7 {[%emt 0:00:14]} 38. Qh5+ {[%emt 0:00:25]} Kg7 {[%emt 0:00:06]} 39. Qxd5 {[%emt 0:00:28]} Kf6 {[%emt 0:01:17]} 40. Qc6+ {[%emt 0:00:00]} Kf5 {[%emt 0:00:00]} 41. Rf1+ {[%emt 0:01:05]} Kg5 {[%emt 0:03:41]} 42. Qf6+ {[%emt 0:01:13]} 1-0

[Event "EYCC Girls-U18 2019"]
[Site "Bratislava"]
[Date "2019.08.06"]
[Round "5.24"]
[White "Urh, Zala"]
[Black "Balan, Briana-Cleopatra"]
[Result "1-0"]
[ECO "D31"]
[WhiteElo "2072"]
[BlackElo "1869"]
[Annotator "NA"]
[PlyCount "63"]
[EventDate "2019.08.02"]
[EventType "swiss"]
[EventCountry "SVK"]
[SourceTitle "playchess.com"]
[Source "ChessBase"]
[SourceQuality "1"]
[TimeControl "40/5400+30:1800+30"]

1. d4 {[%emt 0:00:00]} d5 {[%emt 0:00:00]} 2. c4 {[%emt 0:00:00]} e6 3. Nc3 {[%emt 0:00:00]} a6 {[%emt 0:00:00]} 4. cxd5 {[%emt 0:00:13]} exd5 {[%emt 0:00:01]} 5. Bf4 {[%emt 0:00:14]} c6 {[%emt 0:00:34]} 6. e3 {[%emt 0:01:07]} Bd6 {[%emt 0:00:19]} 7. Bxd6 {[%emt 0:00:16]} Qxd6 {[%emt 0:00:07]} 8. Bd3 {[%emt 0:00:16]} Nf6 {[%emt 0:00:48]} 9. h3 {[%emt 0:01:16]} O-O {[%emt 0:04:21]} 10. Nf3 {[%emt 0:00:12]} Nbd7 {[%emt 0:00:43]} 11. O-O {[%emt 0:00:22]} Re8 {[%emt 0:00:27]} 12. Qc2 {[%emt 0:00:34]} Qe7 {[%emt 0:01:24]} 13. Rab1 {[%emt 0:01:47]} Ne4 {[%emt 0:01:30]} 14. Na4 {[%emt 0:01:10]} h6 {[%emt 0:05:18]} 15. b4 {[%emt 0:01:50]} Qf6 {[%emt 0:13:28]} 16. Rfc1 {[%emt 0:02:34]} Nd6 {[%emt 0:05:52]} 17. Nc5 {[%emt 0:05:00]} Nf8 {[%emt 0:14:49]} 18. Ne5 {[%emt 0:03:59]} Qe7 {[%emt 0:12:22]} 19. a4 {[%emt 0:04:12]} Nd7 {[%emt 0:02:40]} 20. Nf3 {[%emt 0:06:17]} b5 {[%emt 0:10:52]} 21. Re1 {[%emt 0:07:04]} Nc4 {[%emt 0:03:38]} 22. Bxc4 {[%emt 0:07:07]} bxc4 {[%emt 0:06:16]} 23. e4 {[%emt 0:04:26]} Qf6 {[%emt 0:12:07]} 24. exd5 {[%emt 0:02:27]} Rxe1+ {[%emt 0:00:33]} 25. Rxe1 {[%emt 0:00:02]} Nf8 {[%emt 0:02:31]} 26. dxc6 {[%emt 0:04:42]} Qxc6 {[%emt 0:00:42]} 27. Ne5 {[%emt 0:02:31]} Qf6 {[%emt 0:00:58]} 28. Qxc4 {[%emt 0:00:21]} Bf5 {[%emt 0:00:42]} 29. Re3 {[%emt 0:02:47]} Rc8 {[%emt 0:00:46]} 30. Rf3 {[%emt 0:01:02]} Ne6 {[%emt 0:00:34]} 31. g4 {[%emt 0:02:14]} Qg5 {[%emt 0:00:25]} 32. Rxf5 {[%emt 0:00:12]} 1-0

[Event "EYCC Girls-U18 2019"]
[Site "Bratislava"]
[Date "2019.08.08"]
[Round "7.1"]
[White "Badelka, Olga"]
[Black "Sargsyan, Anna M."]
[Result "1-0"]
[ECO "D18"]
[WhiteElo "2386"]
[BlackElo "2229"]
[Annotator "NA"]
[PlyCount "73"]
[EventDate "2019.08.02"]
[EventType "swiss"]
[EventCountry "SVK"]
[SourceTitle "playchess.com"]
[Source "ChessBase"]
[SourceQuality "1"]
[TimeControl "40/5400+30:1800+30"]

1. d4 {[%emt 0:00:00]} d5 {[%emt 0:00:00]} 2. c4 {[%emt 0:00:00]} c6 {[%emt 0:00:00]} 3. Nf3 {[%emt 0:00:00]} Nf6 {[%emt 0:00:00]} 4. Nc3 {[%emt 0:00:00]} dxc4 {[%emt 0:00:02]} 5. a4 {[%emt 0:00:10]} Bf5 {[%emt 0:00:07]} 6. e3 {[%emt 0:00:27]} e6 {[%emt 0:00:08]} 7. Bxc4 {[%emt 0:00:09]} Bb4 {[%emt 0:00:18]} 8. O-O {[%emt 0:00:17]} Nbd7 {[%emt 0:00:02]} 9. Nh4 {[%emt 0:00:23]} O-O {[%emt 0:03:01]} 10. Nxf5 {[%emt 0:00:35]} exf5 {[%emt 0:00:05]} 11. f3 {[%emt 0:00:28]} Nb6 {[%emt 0:01:53]} 12. Bb3 {[%emt 0:00:45]} Qd7 {[%emt 0:06:38]} 13. a5 {[%emt 0:06:40]} Nbd5 {[%emt 0:00:58]} 14. Qd3 {[%emt 0:09:20]} Rad8 {[%emt 0:05:55]} 15. e4 {[%emt 0:10:36]} Nc7 {[%emt 0:02:53]} 16. e5 {[%emt 0:03:00]} Nfd5 {[%emt 0:01:36]} 17. Rd1 {[%emt 0:03:29]} Rfe8 {[%emt 0:16:31]} 18. Nxd5 {[%emt 0:11:04]} Nxd5 {[%emt 0:01:32]} 19. a6 {[%emt 0:00:18]} b5 {[%emt 0:10:38]} 20. Bg5 {[%emt 0:01:25]} Be7 {[%emt 0:01:11]} 21. Bxe7 {[%emt 0:01:05]} Qxe7 {[%emt 0:04:18]} 22. Rac1 {[%emt 0:08:54]} Nf4 {[%emt 0:02:56]} 23. Qc2 {[%emt 0:00:07]} Qg5 {[%emt 0:13:03]} 24. Kh1 {[%emt 0:03:38]} c5 {[%emt 0:04:22]} 25. g3 {[%emt 0:04:12]} Qh5 {[%emt 0:05:42]} 26. Rf1 {[%emt 0:19:46]} Rxd4 {[%emt 0:04:39]} 27. gxf4 {[%emt 0:00:17]} c4 {[%emt 0:00:12]} 28. Qf2 {[%emt 0:00:43]} Rxf4 {[%emt 0:02:44]} 29. Bd1 {[%emt 0:00:48]} Rh4 {[%emt 0:03:33]} 30. f4 {[%emt 0:03:21]} Qh6 {[%emt 0:00:05]} 31. Rc2 {[%emt 0:01:33]} Rd8 {[%emt 0:02:50]} 32. Bf3 {[%emt 0:03:55]} Qxf4 {[%emt 0:02:31]} 33. Qxa7 {[%emt 0:00:37]} g5 {[%emt 0:02:17]} 34. Qf2 {[%emt 0:01:09]} b4 {[%emt 0:03:14]} 35. a7 {[%emt 0:00:11]} b3 {[%emt 0:00:03]} 36. Re2 {[%emt 0:00:10]} Kf8 {[%emt 0:01:20]} 37. Qg1 {[%emt 0:02:19]} 1-0

[Event "EYCC Girls-U18 2019"]
[Site "Bratislava"]
[Date "2019.08.08"]
[Round "7.2"]
[White "Sliwicka, Alicja"]
[Black "Goltseva, Ekaterina"]
[Result "1-0"]
[ECO "C15"]
[WhiteElo "2261"]
[BlackElo "2304"]
[Annotator "NA"]
[PlyCount "119"]
[EventDate "2019.08.02"]
[EventType "swiss"]
[EventCountry "SVK"]
[SourceTitle "playchess.com"]
[Source "ChessBase"]
[SourceQuality "1"]
[TimeControl "40/5400+30:1800+30"]

1. e4 {[%emt 0:00:00]} e6 {[%emt 0:00:00]} 2. d4 {[%emt 0:00:00]} d5 {[%emt 0:00:00]} 3. Nc3 {[%emt 0:00:00]} Bb4 {[%emt 0:00:00]} 4. Bd3 {[%emt 0:00:00]} dxe4 {[%emt 0:00:25]} 5. Bxe4 {[%emt 0:00:09]} Nf6 {[%emt 0:00:12]} 6. Bf3 {[%emt 0:00:41]} O-O {[%emt 0:00:41]} 7. Nge2 {[%emt 0:00:40]} e5 {[%emt 0:00:46]} 8. Bg5 {[%emt 0:09:04]} exd4 {[%emt 0:09:31]} 9. Qxd4 {[%emt 0:03:40]} Qxd4 {[%emt 0:03:16]} 10. Nxd4 {[%emt 0:00:13]} Re8+ {[%emt 0:00:55]} 11. Nde2 {[%emt 0:06:00]} Nbd7 {[%emt 0:07:49]} 12. O-O-O {[%emt 0:02:15]} c6 {[%emt 0:01:35]} 13. a3 {[%emt 0:08:56]} Bc5 {[%emt 0:08:11]} 14. Nd4 {[%emt 0:02:55]} h6 {[%emt 0:02:01]} 15. Bf4 {[%emt 0:14:30]} Ne5 {[%emt 0:02:50]} 16. Be2 {[%emt 0:06:59]} Bd7 {[%emt 0:15:37]} 17. Rhe1 {[%emt 0:03:23]} Rad8 {[%emt 0:02:34]} 18. f3 {[%emt 0:02:04]} Ng6 {[%emt 0:11:31]} 19. Bg3 {[%emt 0:00:37]} Bc8 {[%emt 0:02:26]} 20. Nb3 {[%emt 0:02:19]} Be3+ {[%emt 0:04:03]} 21. Kb1 {[%emt 0:00:10]} Rxd1+ {[%emt 0:02:30]} 22. Rxd1 {[%emt 0:01:20]} h5 {[%emt 0:02:26]} 23. Na5 {[%emt 0:02:38]} h4 {[%emt 0:03:06]} 24. Be1 {[%emt 0:01:36]} h3 {[%emt 0:02:08]} 25. g4 {[%emt 0:03:49]} Bf4 {[%emt 0:04:50]} 26. Bg3 {[%emt 0:01:33]} Nd5 {[%emt 0:01:27]} 27. Bxf4 {[%emt 0:14:39]} Nxc3+ {[%emt 0:01:29]} 28. bxc3 {[%emt 0:00:06]} Nxf4 {[%emt 0:00:11]} 29. Bf1 {[%emt 0:00:40]} Be6 {[%emt 0:04:20]} 30. c4 {[%emt 0:02:12]} f5 {[%emt 0:02:30]} 31. g5 {[%emt 0:01:55]} Bf7 {[%emt 0:00:23]} 32. Nxb7 {[%emt 0:03:04]} Re3 {[%emt 0:01:14]} 33. Nd8 {[%emt 0:02:04]} Bh5 {[%emt 0:01:31]} 34. Bd3 {[%emt 0:01:53]} Bxf3 {[%emt 0:00:41]} 35. Rd2 {[%emt 0:00:42]} Be4 {[%emt 0:01:57]} 36. Bxe4 {[%emt 0:00:44]} fxe4 {[%emt 0:00:07]} 37. Nxc6 {[%emt 0:00:40]} Re1+ {[%emt 0:00:29]} 38. Kb2 {[%emt 0:00:16]} e3 {[%emt 0:00:13]} 39. Rd8+ {[%emt 0:01:39]} Kh7 {[%emt 0:00:45]} 40. Re8 {[%emt 0:00:00]} Kg6 {[%emt 0:00:00]} 41. Ne5+ {[%emt 0:05:31]} Kh7 {[%emt 0:06:27]} 42. Nf3 {[%emt 0:03:03]} Re2 {[%emt 0:00:41]} 43. Re4 {[%emt 0:02:26]} Nd3+ {[%emt 0:17:33]} 44. Kc3 {[%emt 0:00:18]} Nf2 {[%emt 0:01:01]} 45. Rd4 {[%emt 0:00:51]} Nh1 {[%emt 0:04:35]} 46. c5 {[%emt 0:06:11]} Rf2 {[%emt 0:01:45]} 47. Rh4+ {[%emt 0:01:26]} Kg6 {[%emt 0:01:05]} 48. Rxh3 {[%emt 0:00:40]} e2 {[%emt 0:01:00]} 49. Ne5+ {[%emt 0:01:20]} Kxg5 {[%emt 0:01:16]} 50. Nd3 {[%emt 0:00:28]} Rf1 {[%emt 0:00:53]} 51. Re3 {[%emt 0:00:30]} Nf2 {[%emt 0:00:42]} 52. Rxe2 {[%emt 0:00:40]} Ng4 {[%emt 0:00:15]} 53. Kc4 {[%emt 0:00:44]} Rf8 {[%emt 0:00:26]} 54. c6 {[%emt 0:00:33]} Nf6 {[%emt 0:00:31]} 55. Re7 {[%emt 0:01:17]} Rc8 {[%emt 0:00:37]} 56. Kc5 {[%emt 0:00:35]} Kf5 {[%emt 0:00:32]} 57. c7 {[%emt 0:01:00]} Ne8 {[%emt 0:00:26]} 58. Kc6 {[%emt 0:00:41]} Kf6 {[%emt 0:00:10]} 59. Rxe8 {[%emt 0:01:36]} Rxe8 {[%emt 0:00:06]} 60. Kd7 {[%emt 0:01:13]} 1-0

[Event "EYCC Girls-U18 2019"]
[Site "Bratislava"]
[Date "2019.08.08"]
[Round "7.3"]
[White "Muetsch, Annmarie"]
[Black "Radeva, Viktoria"]
[Result "1-0"]
[ECO "B40"]
[WhiteElo "2266"]
[BlackElo "2247"]
[Annotator "NA"]
[PlyCount "71"]
[EventDate "2019.08.02"]
[EventType "swiss"]
[EventCountry "SVK"]
[SourceTitle "playchess.com"]
[Source "ChessBase"]
[SourceQuality "1"]
[TimeControl "40/5400+30:1800+30"]

1. e4 {[%emt 0:00:00]} c5 {[%emt 0:00:00]} 2. Nf3 {[%emt 0:00:00]} e6 {[%emt 0:00:00]} 3. d4 {[%emt 0:00:00]} cxd4 {[%emt 0:00:00]} 4. Nxd4 {[%emt 0:00:00]} Nf6 {[%emt 0:00:00]} 5. Nc3 {[%emt 0:00:00]} Nc6 {[%emt 0:00:00]} 6. Ndb5 {[%emt 0:00:04]} Bc5 {[%emt 0:00:03]} 7. Nd6+ {[%emt 0:00:07]} Ke7 {[%emt 0:00:12]} 8. Bf4 {[%emt 0:00:08]} e5 {[%emt 0:00:06]} 9. Nf5+ {[%emt 0:00:04]} Kf8 {[%emt 0:00:03]} 10. Bg5 {[%emt 0:00:08]} Bb4 {[%emt 0:00:07]} 11. Bd3 {[%emt 0:00:07]} h6 {[%emt 0:19:55]} 12. Bxf6 {[%emt 0:08:59]} Qxf6 {[%emt 0:02:00]} 13. Ne3 {[%emt 0:00:46]} Bxc3+ {[%emt 0:00:13]} 14. bxc3 {[%emt 0:00:05]} h5 {[%emt 0:08:17]} 15. Bc4 {[%emt 0:03:48]} Ne7 {[%emt 0:00:33]} 16. h4 {[%emt 0:06:17]} d6 {[%emt 0:05:33]} 17. Rb1 {[%emt 0:04:00]} b6 {[%emt 0:12:35]} 18. Qd3 {[%emt 0:11:58]} Bb7 {[%emt 0:07:04]} 19. Rh3 {[%emt 0:15:35]} Ng6 {[%emt 0:09:17]} 20. Nd5 {[%emt 0:00:07]} Bxd5 {[%emt 0:02:34]} 21. Qxd5 {[%emt 0:03:42]} Rd8 {[%emt 0:00:10]} 22. Qb7 {[%emt 0:09:31]} Qe7 {[%emt 0:06:33]} 23. Qa6 {[%emt 0:01:24]} Nxh4 {[%emt 0:02:00]} 24. Kf1 {[%emt 0:02:41]} Ng6 {[%emt 0:03:05]} 25. Rf3 {[%emt 0:01:44]} f6 {[%emt 0:00:54]} 26. a4 {[%emt 0:01:54]} Qc7 {[%emt 0:00:57]} 27. Ba2 {[%emt 0:03:42]} h4 {[%emt 0:04:11]} 28. a5 {[%emt 0:10:10]} Rb8 {[%emt 0:00:10]} 29. c4 {[%emt 0:00:09]} Nf4 {[%emt 0:01:13]} 30. axb6 {[%emt 0:03:09]} axb6 {[%emt 0:00:06]} 31. c5 {[%emt 0:04:32]} dxc5 {[%emt 0:02:34]} 32. Rfb3 {[%emt 0:00:20]} h3 {[%emt 0:02:36]} 33. gxh3 {[%emt 0:00:19]} Rxh3 {[%emt 0:00:27]} 34. Rxh3 {[%emt 0:00:09]} Nxh3 {[%emt 0:00:04]} 35. Qc4 {[%emt 0:00:37]} Nf4 {[%emt 0:04:16]} 36. Rd1 {[%emt 0:02:47]} 1-0